fUST/lending_fUST_20250210
["ID","MTS","AMOUNT","RATE_DAILY","PERIOD"]
[352530859,1739153446583,-1788.34,0.00011369,2]
[352530860,1739153446594,-1069.92,0.00011369,2]
[352530861,1739153446603,-500.0,0.00011369,2]
[352530862,1739153446613,-500.0,0.00011369,2]
[352530863,1739153446624,-592.99,0.00011369,2]
[352530864,1739153446634,-500.0,0.00011369,2]
[352530865,1739153446643,-500.0,0.00011369,2]
[352530866,1739153446653,-500.0,0.00011369,2]
[352530867,1739153446664,-621.16,0.00011369,2]
[352530868,1739153446678,-500.0,0.00011369,2]
[352530869,1739153446689,-676.19,0.00011369,2]
[352530870,1739153446699,-500.0,0.00011369,2]
[352530871,1739153446709,-500.0,0.00011369,2]
[352530872,1739153446721,-6646.62,0.00011369,2]
[352530873,1739153446730,-500.0,0.00011369,2]
[352530874,1739153446741,-844.14,0.00011369,2]
[352530875,1739153446751,-500.0,0.00011369,2]
[352530876,1739153446761,-11111.66,0.00011369,2]
[352530877,1739153446771,-500.0,0.00011369,2]
[352530878,1739153446781,-500.0,0.00011369,2]
[352530879,1739153446791,-677.41,0.00011369,2]
[352530880,1739153446800,-500.0,0.00011369,2]
[352530881,1739153446810,-500.0,0.00011369,2]
[352530882,1739153446821,-500.0,0.00011369,2]
[352530883,1739153446830,-661.95,0.00011369,2]
[352530884,1739153446839,-500.0,0.00011369,2]
[352530885,1739153446849,-500.0,0.00011369,2]
[352530886,1739153446858,-500.0,0.00011369,2]
[352530887,1739153446868,-1218.13,0.00011369,2]
[352530888,1739153446878,-500.0,0.00011369,2]
[352530889,1739153446888,-500.0,0.00011369,2]
[352530890,1739153446897,-500.0,0.00011369,2]
[352530891,1739153446907,-500.0,0.00011369,2]
[352530892,1739153446917,-500.0,0.00011369,2]
[352530893,1739153446927,-500.0,0.00011369,2]
[352530894,1739153446937,-1007.54,0.00011369,2]
[352530895,1739153446946,-500.0,0.00011369,2]
[352530896,1739153446956,-560.96,0.00011369,2]
[352530897,1739153446965,-616.17095926,0.00011369,2]
[352530898,1739153446975,-569.61,0.00011369,2]
[352530899,1739153446985,-500.0,0.00011369,2]
[352530900,1739153446994,-500.0,0.00011369,2]
[352530901,1739153447003,-500.0,0.00011369,2]
[352530902,1739153447013,-500.0,0.00011369,2]
[352530903,1739153447023,-500.0,0.00011369,2]
[352530904,1739153447032,-241.94063326,0.00011369,2]
[352530905,1739153447041,-1210.0,0.00011369,2]
[352530906,1739153447051,-500.0,0.00011369,2]
[352530907,1739153447061,-500.0,0.00011369,2]
[352530908,1739153447071,-500.0,0.00011369,2]
[352530909,1739153447081,-500.0,0.00011369,2]
[352530910,1739153447090,-500.0,0.00011369,2]
[352530911,1739153447100,-500.0,0.00011506,2]
[352530912,1739153447109,-556.9,0.00011506,2]
[352530913,1739153447119,-558.55,0.00011506,2]
[352530914,1739153447129,-500.0,0.00011506,2]
[352530915,1739153447139,-500.0,0.00011506,2]
[352530916,1739153447148,-500.0,0.00011506,2]
[352530917,1739153447158,-500.0,0.00011506,2]
[352530918,1739153447168,-528.42,0.00011506,2]
[352530919,1739153447178,-500.0,0.00011506,2]
[352530920,1739153447187,-500.0,0.00011506,2]
[352530921,1739153447197,-343.07281591,0.00011506,2]
[352530922,1739153447207,-500.0,0.00011506,2]
[352530923,1739153447217,-500.0,0.00011506,2]
[352530924,1739153447226,-450.67224111,0.00011506,2]
[352530925,1739153447236,-500.0,0.00011506,2]
[352530926,1739153447245,-500.0,0.00011506,2]
[352530927,1739153447255,-500.0,0.00011506,2]
[352530928,1739153447265,-500.0,0.00011506,2]
[352530929,1739153447274,-590.39,0.00011506,2]
[352530930,1739153447284,-500.0,0.00011506,2]
[352530931,1739153447293,-500.0,0.00011506,2]
[352530932,1739153447303,-500.0,0.00011506,2]
[352530933,1739153447313,-291.73943482,0.00011506,2]
[352530934,1739153447324,-592.08,0.00011506,2]
[352530935,1739153447334,-500.0,0.00011506,2]
[352530936,1739153447344,-500.0,0.00011506,2]
[352530937,1739153447354,-500.0,0.00011506,2]
[352530938,1739153447365,-500.0,0.00011506,2]
[352530939,1739153447375,-500.0,0.00011506,2]
[352530940,1739153447385,-500.0,0.00011506,2]
[352530941,1739153447396,-939.87,0.00011506,2]
[352530942,1739153447406,-500.0,0.00011506,2]
[352530943,1739153447416,-1474.55,0.00011506,2]
[352530944,1739153447427,-2048.45,0.00011506,2]
[352530945,1739153447437,-500.0,0.00011506,2]
[352530946,1739153447447,-574.99,0.00011506,2]
[352530947,1739153447458,-500.0,0.00011506,2]
[352530948,1739153447469,-500.0,0.00011506,2]
[352530949,1739153447479,-500.0,0.00011506,2]
[352530950,1739153447488,-500.0,0.00011506,2]
[352530951,1739153447499,-2155.17,0.00011506,2]
[352530952,1739153447508,-1902.27,0.00011506,2]
[352530953,1739153447518,-1788.34,0.00011506,2]
[352530954,1739153447527,-1069.92,0.00011506,2]
[352530955,1739153447537,-500.0,0.00011506,2]
[352530956,1739153447546,-500.0,0.00011506,2]
[352530957,1739153447556,-592.99,0.00011506,2]
[352530958,1739153447565,-598.83660907,0.00011506,2]
[352530959,1739153447580,-500.0,0.00011506,2]
[352530960,1739153447591,-500.0,0.00011506,2]
[352530961,1739153447602,-621.16,0.00011506,2]
[352530962,1739153447612,-389.42993362,0.00011506,2]
[352530963,1739153447623,-676.19,0.00011506,2]
[352530964,1739153447634,-500.0,0.00011506,2]
[352530965,1739153447646,-500.0,0.00011506,2]
[352530966,1739153447656,-6646.62,0.00011506,2]
[352530967,1739153447668,-500.0,0.00011506,2]
[352530968,1739153447683,-844.14,0.00011506,2]
[352530969,1739153447694,-500.0,0.00011506,2]
[352530970,1739153447705,-11111.66,0.00011506,2]
[352530971,1739153447716,-294.41690664,0.00011506,2]
[352530972,1739153447727,-500.0,0.00011506,2]
[352530973,1739153447739,-677.41,0.00011506,2]
[352530974,1739153447750,-500.0,0.00011506,2]
[352530975,1739153447760,-500.0,0.00011506,2]
[352530976,1739153447771,-661.95,0.00011506,2]
[352530977,1739153447782,-500.0,0.00011506,2]
[352530978,1739153447793,-500.0,0.00011506,2]
[352530979,1739153447803,-500.0,0.00011506,2]
[352530980,1739153447814,-1218.13,0.00011506,2]
[352530981,1739153447830,-500.0,0.00011506,2]
[352530982,1739153447841,-500.0,0.00011506,2]
[352530983,1739153447950,-500.0,0.00011506,2]
[352530984,1739153447961,-500.0,0.00011506,2]
[352530985,1739153447973,-500.0,0.00011506,2]
[352530986,1739153447983,-1007.54,0.00011506,2]
[352530987,1739153447995,-500.0,0.00011506,2]
[352530988,1739153448006,-560.96,0.00011506,2]
[352530989,1739153448017,-569.61,0.00011506,2]
[352530990,1739153448028,-500.0,0.00011506,2]
[352530991,1739153448039,-441.70474099,0.00011506,2]
[352530992,1739153448049,-500.0,0.00011506,2]
[352530993,1739153448060,-500.0,0.00011506,2]
[352530994,1739153448075,-1210.0,0.00011506,2]
[352530995,1739153448086,-500.0,0.00011506,2]
[352530996,1739153448098,-500.0,0.00011506,2]
[352530997,1739153448109,-500.0,0.00011506,2]
[352530998,1739153448119,-182.13934641,0.00011543,2]
[352530999,1739153448130,-500.0,0.00011643,2]
[352531000,1739153448139,-500.0,0.00011643,2]
[352531001,1739153448149,-500.0,0.00011643,2]
[352531002,1739153448160,-500.0,0.00011643,2]
[352531003,1739153448170,-500.0,0.00011643,2]
[352531004,1739153448181,-528.42,0.00011643,2]
[352531005,1739153448191,-586.48,0.00011643,2]
[352531006,1739153448201,-500.0,0.00011643,2]
[352531007,1739153448212,-500.0,0.00011643,2]
[352531008,1739153448221,-500.0,0.00011643,2]
[352531009,1739153448230,-500.0,0.00011643,2]
[352531010,1739153448239,-336.99517103,0.00011643,2]
[352531011,1739153448249,-332.0508245,0.00011643,2]
[352531012,1739153448259,-590.39,0.00011643,2]
[352531013,1739153448269,-500.0,0.00011643,2]
[352531014,1739153448278,-500.0,0.00011643,2]
[352531015,1739153448288,-500.0,0.00011643,2]
[352531016,1739153448298,-500.0,0.00011643,2]
[352531017,1739153448308,-500.0,0.00011643,2]
[352531018,1739153448319,-500.0,0.00011643,2]
[352531019,1739153448328,-500.0,0.00011643,2]
[352531020,1739153448338,-500.0,0.00011643,2]
[352531021,1739153448349,-500.0,0.00011643,2]
[352531022,1739153448359,-939.87,0.00011643,2]
[352531023,1739153448369,-500.0,0.00011643,2]
[352531024,1739153448379,-1474.55,0.00011643,2]
[352531025,1739153448390,-2048.45,0.00011643,2]
[352531026,1739153448401,-500.0,0.00011643,2]
[352531027,1739153448411,-574.99,0.00011643,2]
[352531028,1739153448421,-500.0,0.00011643,2]
[352531029,1739153448431,-500.0,0.00011643,2]
[352531030,1739153448441,-500.0,0.00011643,2]
[352531031,1739153448451,-500.0,0.00011643,2]
[352531032,1739153448461,-2155.17,0.00011643,2]
[352531033,1739153448471,-1902.27,0.00011643,2]
[352531034,1739153448481,-1788.34,0.00011643,2]
[352531035,1739153448491,-1069.92,0.00011643,2]
[352531036,1739153448502,-161.24409204,0.00011643,2]
[352531037,1739153448512,-500.0,0.00011643,2]
[352531038,1739153448522,-592.99,0.00011643,2]
[352531039,1739153448532,-455.69066298,0.00011643,2]
[352531040,1739153448541,-500.0,0.00011643,2]
[352531041,1739153448553,-621.16,0.00011643,2]
[352531042,1739153448564,-676.19,0.00011643,2]
[352531043,1739153448577,-500.0,0.00011643,2]
[352531044,1739153448589,-500.0,0.00011643,2]
[352531045,1739153448600,-6646.62,0.00011643,2]
[352531046,1739153448611,-503.89,0.00011643,2]
[352531047,1739153448621,-844.14,0.00011643,2]
[352531048,1739153448631,-500.0,0.00011643,2]
[352531049,1739153448641,-11111.66,0.00011643,2]
[352531050,1739153448651,-500.0,0.00011643,2]
[352531051,1739153448662,-677.41,0.00011643,2]
[352531052,1739153448672,-500.0,0.00011643,2]
[352531053,1739153448683,-661.95,0.00011643,2]
[352531054,1739153448694,-500.0,0.00011643,2]
[352531055,1739153448704,-500.0,0.00011643,2]
[352531056,1739153448716,-500.0,0.00011643,2]
[352531057,1739153448726,-1218.13,0.00011643,2]
[352531058,1739153448736,-500.0,0.00011643,2]
[352531059,1739153448745,-500.0,0.00011643,2]
[352531060,1739153448758,-500.0,0.00011643,2]
[352531061,1739153448769,-641.17702275,0.00011643,2]
[352531062,1739153448780,-500.0,0.00011643,2]
[352531063,1739153448790,-1007.54,0.00011643,2]
[352531064,1739153448800,-500.0,0.00011643,2]
[352531065,1739153448811,-560.96,0.00011643,2]
[352531066,1739153448823,-569.61,0.00011643,2]
[352531067,1739153448834,-500.0,0.00011643,2]
[352531068,1739153448845,-500.0,0.00011643,2]
[352531069,1739153448855,-500.0,0.00011643,2]
[352531070,1739153448866,-1210.0,0.00011643,2]
[352531071,1739153448878,-500.0,0.00011643,2]
[352531072,1739153448889,-500.0,0.00011643,2]
[352531073,1739153448900,-500.0,0.00011643,2]
[352531074,1739153448912,-500.48444495,0.00011698,2]
[352531075,1739153448922,-500.0,0.0001178,2]
[352531076,1739153448933,-500.0,0.0001178,2]
[352531077,1739153448944,-500.0,0.0001178,2]
[352531078,1739153448954,-500.0,0.0001178,2]
[352531079,1739153448965,-500.0,0.0001178,2]
[352531080,1739153448976,-528.42,0.0001178,2]
[352531081,1739153448986,-500.0,0.0001178,2]
[352531082,1739153448997,-500.0,0.0001178,2]
[352531083,1739153449008,-196.162575,0.0001178,2]
[352531084,1739153449019,-590.39,0.0001178,2]
[352531085,1739153449029,-500.0,0.0001178,2]
[352531086,1739153449039,-500.0,0.0001178,2]
[352531087,1739153449050,-500.0,0.0001178,2]
[352531088,1739153449061,-500.0,0.0001178,2]
[352531089,1739153449075,-500.0,0.0001178,2]
[352531090,1739153449086,-500.0,0.0001178,2]
[352531091,1739153449097,-500.0,0.0001178,2]
[352531092,1739153449109,-939.87,0.0001178,2]
[352531093,1739153449119,-500.0,0.0001178,2]
[352531094,1739153449131,-1474.55,0.0001178,2]
[352531095,1739153449141,-2048.45,0.0001178,2]
[352531096,1739153449152,-500.0,0.0001178,2]
[352531097,1739153449162,-574.99,0.0001178,2]
[352531098,1739153449173,-500.0,0.0001178,2]
[352531099,1739153449183,-500.0,0.0001178,2]
[352531100,1739153449193,-500.0,0.0001178,2]
[352531101,1739153449203,-500.0,0.0001178,2]
[352531102,1739153449213,-1183.11101142,0.0001178,2]
[352531103,1739153449377,-972.05898858,0.0001178,2]
[352531104,1739153449389,-1902.27,0.0001178,2]
[352531105,1739153449400,-1788.34,0.0001178,2]
[352531106,1739153449411,-1069.92,0.0001178,2]
[352531107,1739153449422,-500.0,0.0001178,2]
[352531108,1739153449433,-592.99,0.0001178,2]
[352531109,1739153449444,-623.44057273,0.0001178,2]
[352531110,1739153449456,-621.16,0.0001178,2]
[352531111,1739153449466,-676.19,0.0001178,2]
[352531112,1739153449477,-500.0,0.0001178,2]
[352531113,1739153449488,-500.0,0.0001178,2]
[352531114,1739153449499,-6646.62,0.0001178,2]
[352531115,1739153449509,-844.14,0.0001178,2]
[352531116,1739153449519,-386.30167494,0.0001178,2]
[352531117,1739153449530,-11111.66,0.0001178,2]
[352531118,1739153449540,-500.0,0.0001178,2]
[352531119,1739153449551,-677.41,0.0001178,2]
[352531120,1739153449561,-500.0,0.0001178,2]
[352531121,1739153449578,-661.95,0.0001178,2]
[352531122,1739153449588,-500.0,0.0001178,2]
[352531123,1739153449598,-500.0,0.0001178,2]
[352531124,1739153449608,-1218.13,0.0001178,2]
[352531125,1739153449619,-500.0,0.0001178,2]
[352531126,1739153449629,-500.0,0.0001178,2]
[352531127,1739153449639,-500.0,0.0001178,2]
[352531128,1739153449649,-500.0,0.0001178,2]
[352531129,1739153449659,-1007.54,0.0001178,2]
[352531130,1739153449670,-500.0,0.0001178,2]
[352531131,1739153449682,-560.96,0.0001178,2]
[352531132,1739153449692,-569.61,0.0001178,2]
[352531133,1739153449702,-500.0,0.0001178,2]
[352531134,1739153449713,-500.0,0.0001178,2]
[352531135,1739153449723,-1210.0,0.0001178,2]
[352531136,1739153449733,-500.0,0.0001178,2]
[352531137,1739153449743,-500.0,0.0001178,2]
[352531138,1739153449754,-500.0,0.0001178,2]
[352531139,1739153449763,-1409.33789166,0.00011785,2]
[352531140,1739153449773,-500.0,0.00011902,2]
[352531141,1739153449783,-500.0,0.00011917,2]
[352531142,1739153449792,-500.0,0.00011917,2]
[352531143,1739153449802,-500.0,0.00011917,2]
[352531144,1739153449811,-528.42,0.00011917,2]
[352531145,1739153449824,-500.0,0.00011917,2]
[352531146,1739153449833,-500.0,0.00011917,2]
[352531147,1739153449843,-590.39,0.00011917,2]
[352531148,1739153449852,-382.56462284,0.00011917,2]
[352531149,1739153449861,-500.0,0.00011917,2]
[352531150,1739153449871,-500.0,0.00011917,2]
[352531151,1739153449880,-500.0,0.00011917,2]
[352531152,1739153449890,-460.37907979,0.00011917,2]
[352531153,1739153449900,-500.0,0.00011917,2]
[352531154,1739153449909,-939.87,0.00011917,2]
[352531155,1739153449919,-500.0,0.00011917,2]
[352531156,1739153449928,-1474.55,0.00011917,2]
[352531157,1739153449938,-2048.45,0.00011917,2]
[352531158,1739153449947,-500.0,0.00011917,2]
[352531159,1739153449957,-574.99,0.00011917,2]
[352531160,1739153449966,-500.0,0.00011917,2]
[352531161,1739153450064,-500.0,0.00011917,2]
[352531162,1739153450077,-500.0,0.00011917,2]
[352531163,1739153450087,-500.0,0.00011917,2]
[352531164,1739153450097,-2155.17,0.00011917,2]
[352531165,1739153450107,-1902.27,0.00011917,2]
[352531166,1739153450116,-1788.34,0.00011917,2]
[352531167,1739153450126,-1069.92,0.00011917,2]
[352531168,1739153450136,-500.0,0.00011917,2]
[352531169,1739153450145,-592.99,0.00011917,2]
[352531170,1739153450155,-621.16,0.00011917,2]
[352531171,1739153450165,-676.19,0.00011917,2]
[352531172,1739153450175,-500.0,0.00011917,2]
[352531173,1739153450184,-500.0,0.00011917,2]
[352531174,1739153450194,-6646.62,0.00011917,2]
[352531175,1739153450204,-844.14,0.00011917,2]
[352531176,1739153450214,-11111.66,0.00011917,2]
[352531177,1739153450224,-677.41,0.00011917,2]
[352531178,1739153450233,-500.0,0.00011917,2]
[352531179,1739153450243,-661.95,0.00011917,2]
[352531180,1739153450253,-500.0,0.00011917,2]
[352531181,1739153450262,-500.0,0.00011917,2]
[352531182,1739153450272,-1218.13,0.00011917,2]
[352531183,1739153450282,-500.0,0.00011917,2]
[352531184,1739153450292,-500.0,0.00011917,2]
[352531185,1739153450301,-500.0,0.00011917,2]
[352531186,1739153450311,-500.0,0.00011917,2]
[352531187,1739153450324,-1007.54,0.00011917,2]
[352531188,1739153450334,-500.0,0.00011917,2]
[352531189,1739153450344,-560.96,0.00011917,2]
[352531190,1739153450353,-569.61,0.00011917,2]
[352531191,1739153450363,-500.0,0.00011917,2]
[352531192,1739153450372,-500.0,0.00011917,2]
[352531193,1739153450383,-1210.0,0.00011917,2]
[352531194,1739153450395,-500.0,0.00011917,2]
[352531195,1739153450409,-500.0,0.00011917,2]
[352531196,1739153450419,-500.0,0.00011917,2]
[352531197,1739153450428,-500.0,0.0001192,2]
[352531198,1739153450438,-500.0,0.00011937,2]
[352531199,1739153450449,-500.0,0.00011937,2]
[352531200,1739153450458,-500.0,0.00011946,2]
[352531201,1739153450468,-500.0,0.00011962,2]
[352531202,1739153450478,-500.0,0.00011962,2]
[352531203,1739153450491,-500.0,0.00011962,2]
[352531204,1739153450501,-504.93731554,0.00011972,2]
[352531205,1739153450511,-502.27251224,0.00011976,2]
[352531206,1739153450521,-527.43655362,0.00011976,2]
[352531207,1739153450531,-500.59239481,0.00011976,2]
[352531208,1739153450540,-420.0,0.00011978,2]
[352531209,1739153450549,-500.0,0.00012054,2]
[352531210,1739153450558,-500.0,0.00012054,2]
[352531211,1739153450568,-500.0,0.00012054,2]
[352531212,1739153450579,-528.42,0.00012054,2]
[352531213,1739153450587,-500.0,0.00012054,2]
[352531214,1739153450596,-500.0,0.00012054,2]
[352531215,1739153450605,-590.39,0.00012054,2]
[352531216,1739153450615,-500.0,0.00012054,2]
[352531217,1739153450624,-500.0,0.00012054,2]
[352531218,1739153450633,-500.0,0.00012054,2]
[352531219,1739153450642,-500.0,0.00012054,2]
[352531220,1739153450652,-939.87,0.00012054,2]
[352531221,1739153450661,-500.0,0.00012054,2]
[352531222,1739153450673,-1474.55,0.00012054,2]
[352531223,1739153450684,-2048.45,0.00012054,2]
[352531224,1739153450694,-193.23041352,0.00012054,2]
[352531225,1739153450703,-574.99,0.00012054,2]
[352531226,1739153450714,-500.0,0.00012054,2]
[352531227,1739153450724,-500.0,0.00012054,2]
[352531228,1739153450733,-500.0,0.00012054,2]
[352531229,1739153450743,-443.55379571,0.00012054,2]
[352531230,1739153450756,-2155.17,0.00012054,2]
[352531231,1739153450766,-1902.27,0.00012054,2]
[352531232,1739153450776,-1788.34,0.00012054,2]
[352531233,1739153450786,-1069.92,0.00012054,2]
[352531234,1739153450796,-500.0,0.00012054,2]
[352531235,1739153450805,-592.99,0.00012054,2]
[352531236,1739153450814,-621.16,0.00012054,2]
[352531237,1739153450828,-676.19,0.00012054,2]
[352531238,1739153450837,-500.0,0.00012054,2]
[352531239,1739153450847,-500.0,0.00012054,2]
[352531240,1739153450857,-6646.62,0.00012054,2]
[352531241,1739153450866,-844.14,0.00012054,2]
[352531242,1739153450876,-11111.66,0.00012054,2]
[352531243,1739153450885,-677.41,0.00012054,2]
[352531244,1739153450894,-500.0,0.00012054,2]
[352531245,1739153450904,-661.95,0.00012054,2]
[352531246,1739153450913,-500.0,0.00012054,2]
[352531247,1739153450923,-500.0,0.00012054,2]
[352531248,1739153450933,-1218.13,0.00012054,2]
[352531249,1739153450943,-500.0,0.00012054,2]
[352531250,1739153450953,-500.0,0.00012054,2]
[352531251,1739153450963,-500.0,0.00012054,2]
[352531252,1739153450972,-500.0,0.00012054,2]
[352531253,1739153450982,-1007.54,0.00012054,2]
[352531254,1739153450993,-500.0,0.00012054,2]
[352531255,1739153451002,-560.96,0.00012054,2]
[352531256,1739153451012,-569.61,0.00012054,2]
[352531257,1739153451022,-500.0,0.00012054,2]
[352531258,1739153451032,-500.0,0.00012054,2]
[352531259,1739153451042,-1210.0,0.00012054,2]
[352531260,1739153451052,-500.0,0.00012054,2]
[352531261,1739153451062,-500.0,0.00012054,2]
[352531262,1739153451072,-500.0,0.00012054,2]
[352531263,1739153451082,-414.45712393,0.00012072,2]
[352531264,1739153451091,-500.0,0.00012191,2]
[352531265,1739153451100,-500.0,0.00012191,2]
[352531266,1739153451109,-500.0,0.00012191,2]
[352531267,1739153451119,-528.42,0.00012191,2]
[352531268,1739153451128,-500.0,0.00012191,2]
[352531269,1739153451138,-500.0,0.00012191,2]
[352531270,1739153451148,-590.39,0.00012191,2]
[352531271,1739153451158,-401.73822142,0.00012191,2]
[352531272,1739153451167,-500.0,0.00012191,2]
[352531273,1739153451177,-500.0,0.00012191,2]
[352531274,1739153451187,-500.0,0.00012191,2]
[352531275,1739153451197,-939.87,0.00012191,2]
[352531276,1739153451207,-500.0,0.00012191,2]
[352531277,1739153451216,-1474.55,0.00012191,2]
[352531278,1739153451226,-2048.45,0.00012191,2]
[352531279,1739153451236,-574.99,0.00012191,2]
[352531280,1739153451246,-500.0,0.00012191,2]
[352531281,1739153451256,-500.0,0.00012191,2]
[352531282,1739153451266,-321.29460215,0.00012191,2]
[352531283,1739153451276,-2155.17,0.00012191,2]
[352531284,1739153451286,-1902.27,0.00012191,2]
[352531285,1739153451295,-1788.34,0.00012191,2]
[352531286,1739153451305,-1069.92,0.00012191,2]
[352531287,1739153451315,-500.0,0.00012191,2]
[352531288,1739153451329,-592.99,0.00012191,2]
[352531289,1739153451339,-621.16,0.00012191,2]
[352531290,1739153451348,-676.19,0.00012191,2]
[352531291,1739153451358,-500.0,0.00012191,2]
[352531292,1739153451368,-500.0,0.00012191,2]
[352531293,1739153451377,-6646.62,0.00012191,2]
[352531294,1739153451387,-844.14,0.00012191,2]
[352531295,1739153451397,-11111.66,0.00012191,2]
[352531296,1739153451407,-677.41,0.00012191,2]
[352531297,1739153451416,-500.0,0.00012191,2]
[352531298,1739153451425,-661.95,0.00012191,2]
[352531299,1739153451435,-500.0,0.00012191,2]
[352531300,1739153451444,-500.0,0.00012191,2]
[352531301,1739153451453,-1218.13,0.00012191,2]
[352531302,1739153451462,-439.06556329,0.00012191,2]
[352531303,1739153451472,-500.0,0.00012191,2]
[352531304,1739153451482,-500.0,0.00012191,2]
[352531305,1739153451492,-500.0,0.00012191,2]
[352531306,1739153451502,-1007.54,0.00012191,2]
[352531307,1739153451511,-500.0,0.00012191,2]
[352531308,1739153451521,-560.96,0.00012191,2]
[352531309,1739153451530,-569.61,0.00012191,2]
[352531310,1739153451539,-500.0,0.00012191,2]
[352531311,1739153451548,-500.0,0.00012191,2]
[352531312,1739153451557,-1210.0,0.00012191,2]
[352531313,1739153451567,-500.0,0.00012191,2]
[352531314,1739153451578,-500.0,0.00012191,2]
[352531315,1739153451587,-500.0,0.00012191,2]
[352531316,1739153451596,-151.0,0.000122,2]
[352531317,1739153451606,-1000.0,0.0001222,2]
[352531318,1739153451615,-827.00873926,0.00012255,2]
[352531319,1739153451625,-151.0,0.000123,2]
[352531320,1739153451634,-500.0,0.00012328,2]
[352531321,1739153451643,-500.0,0.00012328,2]
[352531322,1739153451653,-500.0,0.00012328,2]
[352531323,1739153451663,-528.42,0.00012328,2]
[352531324,1739153451676,-500.0,0.00012328,2]
[352531325,1739153451685,-500.0,0.00012328,2]
[352531326,1739153451695,-590.39,0.00012328,2]
[352531327,1739153451704,-500.0,0.00012328,2]
[352531328,1739153451714,-500.0,0.00012328,2]
[352531329,1739153451723,-500.0,0.00012328,2]
[352531330,1739153451733,-939.87,0.00012328,2]
[352531331,1739153451743,-500.0,0.00012328,2]
[352531332,1739153451753,-1474.55,0.00012328,2]
[352531333,1739153451763,-2048.45,0.00012328,2]
[352531334,1739153451773,-574.99,0.00012328,2]
[352531335,1739153451783,-500.0,0.00012328,2]
[352531336,1739153451792,-500.0,0.00012328,2]
[352531337,1739153451802,-2155.17,0.00012328,2]
[352531338,1739153451811,-1902.27,0.00012328,2]
[352531339,1739153451822,-1788.34,0.00012328,2]
[352531340,1739153451831,-1069.92,0.00012328,2]
[352531341,1739153451841,-500.0,0.00012328,2]
[352531342,1739153451850,-592.99,0.00012328,2]
[352531343,1739153451859,-621.16,0.00012328,2]
[352531344,1739153451869,-676.19,0.00012328,2]
[352531345,1739153451878,-500.0,0.00012328,2]
[352531346,1739153451888,-500.0,0.00012328,2]
[352531347,1739153451897,-6646.62,0.00012328,2]
[352531348,1739153451906,-844.14,0.00012328,2]
[352531349,1739153451916,-11111.66,0.00012328,2]
[352531350,1739153451925,-677.41,0.00012328,2]
[352531351,1739153452009,-500.0,0.00012328,2]
[352531352,1739153452019,-661.95,0.00012328,2]
[352531353,1739153452029,-500.0,0.00012328,2]
[352531354,1739153452039,-500.0,0.00012328,2]
[352531355,1739153452049,-1218.13,0.00012328,2]
[352531356,1739153452058,-500.0,0.00012328,2]
[352531357,1739153452068,-500.0,0.00012328,2]
[352531358,1739153452080,-500.0,0.00012328,2]